fUSD/lending_fUSD_20240729
["ID","MTS","AMOUNT","RATE_DAILY","PERIOD"]
[333546482,1722241849849,-621.02,0.00010958,2]
[333546483,1722241849859,-621.02,0.00010958,2]
[333546484,1722241849869,-621.02,0.00010958,2]
[333546485,1722241849879,-621.02,0.00010958,2]
[333546486,1722241849889,-621.02,0.00010958,2]
[333546487,1722241849899,-621.06,0.00010958,2]
[333546488,1722241849909,-500.0,0.00010958,2]
[333546489,1722241849919,-500.0,0.00010958,2]
[333546490,1722241849929,-500.0,0.00010958,2]
[333546491,1722241849939,-500.0,0.00010958,2]
[333546492,1722241849949,-500.0,0.00010958,2]
[333546493,1722241849960,-500.0,0.00010958,2]
[333546494,1722241849970,-500.0,0.00010958,2]
[333546495,1722241849981,-500.0,0.00010958,2]
[333546496,1722241849992,-500.0,0.00010958,2]
[333546497,1722241850002,-500.0,0.00010958,2]
[333546498,1722241850012,-414.6,0.00010958,2]
[333546499,1722241850022,-303.43,0.00010958,2]
[333546500,1722241850032,-500.0,0.00010958,2]
[333546501,1722241850042,-500.0,0.00010958,2]
[333546502,1722241850052,-500.0,0.00010958,2]
[333546503,1722241850063,-215.42,0.00010958,2]
[333546504,1722241850072,-500.0,0.00010958,2]
[333546505,1722241850082,-3305.29,0.00010958,2]
[333546506,1722241850092,-500.0,0.00010958,2]
[333546507,1722241850102,-500.0,0.00010958,2]
[333546508,1722241850111,-500.0,0.00010958,2]
[333546509,1722241850121,-500.0,0.00010958,2]
[333546510,1722241850132,-3305.29,0.00010958,2]
[333546511,1722241850142,-500.0,0.00010958,2]
[333546512,1722241850151,-500.0,0.00010958,2]
[333546513,1722241850161,-3305.29,0.00010958,2]
[333546514,1722241850170,-500.0,0.00010958,2]
[333546515,1722241850179,-3305.29,0.00010958,2]
[333546516,1722241850189,-625.08,0.00010958,2]
[333546517,1722241850198,-3305.29,0.00010958,2]
[333546518,1722241850207,-3305.29,0.00010958,2]
[333546519,1722241850217,-500.0,0.00010958,2]
[333546520,1722241850227,-3305.29,0.00010958,2]
[333546521,1722241850236,-500.0,0.00010958,2]
[333546522,1722241850246,-500.0,0.00010958,2]
[333546523,1722241850255,-3305.29,0.00010958,2]
[333546524,1722241850265,-500.0,0.00010958,2]
[333546525,1722241850274,-500.0,0.00010958,2]
[333546526,1722241850283,-500.0,0.00010958,2]
[333546527,1722241850293,-3305.29,0.00010958,2]
[333546528,1722241850303,-500.0,0.00010958,2]
[333546529,1722241850312,-500.0,0.00010958,2]
[333546530,1722241850321,-500.0,0.00010958,2]
[333546531,1722241850332,-3305.29,0.00010958,2]
[333546532,1722241850341,-500.0,0.00010958,2]
[333546533,1722241850351,-3305.29,0.00010958,2]
[333546534,1722241850361,-500.0,0.00010958,2]
[333546535,1722241850371,-427.81,0.00010958,2]
[333546536,1722241850382,-3305.29,0.00010958,2]
[333546537,1722241850392,-500.0,0.00010958,2]
[333546538,1722241850402,-3305.29,0.00010958,2]
[333546539,1722241850411,-3305.29,0.00010958,2]
[333546540,1722241850421,-500.0,0.00010958,2]
[333546541,1722241850430,-3305.29,0.00010958,2]
[333546542,1722241850440,-500.0,0.00010958,2]
[333546543,1722241850449,-500.0,0.00010958,2]
[333546544,1722241850459,-3305.29,0.00010958,2]
[333546545,1722241850470,-3305.29,0.00010958,2]
[333546546,1722241850479,-500.0,0.00010958,2]
[333546547,1722241850489,-500.0,0.00010958,2]
[333546548,1722241850499,-3305.29,0.00010958,2]
[333546549,1722241850508,-500.0,0.00010958,2]
[333546550,1722241850517,-500.0,0.00010958,2]
[333546551,1722241850527,-500.0,0.00010958,2]
[333546552,1722241850536,-3305.29,0.00010958,2]
[333546553,1722241850546,-500.0,0.00010958,2]
[333546554,1722241850555,-3305.29,0.00010958,2]
[333546555,1722241850565,-500.0,0.00010958,2]
[333546556,1722241850574,-500.0,0.00010958,2]
[333546557,1722241850584,-500.0,0.00010958,2]
[333546558,1722241850593,-3305.29,0.00010958,2]
[333546559,1722241850602,-500.0,0.00010958,2]
[333546560,1722241850612,-500.0,0.00010958,2]
[333546561,1722241850621,-500.0,0.00010958,2]
[333546562,1722241850632,-3305.29,0.00010958,2]
[333546563,1722241850641,-500.0,0.00010958,2]
[333546564,1722241850651,-500.0,0.00010958,2]
[333546565,1722241850660,-500.0,0.00010958,2]
[333546566,1722241850669,-500.0,0.00010958,2]
[333546567,1722241850678,-500.0,0.00010958,2]
[333546568,1722241850687,-500.0,0.00010958,2]
[333546569,1722241850697,-3305.29,0.00010958,2]
[333546570,1722241850706,-500.0,0.00010958,2]
[333546571,1722241850715,-500.0,0.00010958,2]
[333546572,1722241850724,-500.0,0.00010958,2]
[333546573,1722241850735,-500.0,0.00010958,2]
[333546574,1722241850745,-500.0,0.00010958,2]
[333546575,1722241850754,-3305.42,0.00010958,2]
[333546576,1722241850764,-500.0,0.00010958,2]
[333546577,1722241850774,-500.0,0.00010958,2]
[333546578,1722241850784,-500.0,0.00010958,2]
[333546579,1722241850793,-500.0,0.00010958,2]
[333546580,1722241850803,-500.0,0.00010958,2]
[333546581,1722241850813,-500.0,0.00010958,2]
[333546582,1722241850823,-500.0,0.00010958,2]
[333546583,1722241850833,-500.0,0.00010958,2]
[333546584,1722241850842,-381.04,0.00010958,2]
[333546585,1722241850852,-500.0,0.00010958,2]
[333546586,1722241850862,-500.0,0.00010958,2]
[333546587,1722241850871,-500.0,0.00010958,2]
[333546588,1722241850882,-500.0,0.00010958,2]
[333546589,1722241850892,-500.0,0.00010958,2]
[333546590,1722241850901,-500.0,0.00010958,2]
[333546591,1722241850912,-524.39,0.00010958,2]
[333546592,1722241850922,-500.0,0.00010958,2]
[333546593,1722241850931,-278.31,0.00010958,2]
[333546594,1722241850942,-524.39,0.00010958,2]
[333546595,1722241850951,-524.39,0.00010958,2]
[333546596,1722241850962,-485.7,0.00010958,2]
[333546597,1722241850972,-524.39,0.00010958,2]
[333546598,1722241850982,-720.8,0.00010958,2]
[333546599,1722241850996,-720.8,0.00010958,2]
[333546600,1722241851006,-720.8,0.00010958,2]
[333546601,1722241851017,-720.8,0.00010958,2]
[333546602,1722241851027,-720.8,0.00010958,2]
[333546603,1722241851038,-720.8,0.00010958,2]
[333546604,1722241851048,-500.0,0.00010958,2]
[333546605,1722241851058,-500.0,0.00010958,2]
[333546606,1722241851069,-720.8,0.00010958,2]
[333546607,1722241851079,-280.6018754,0.00010958,2]
[333546608,1722241851090,-500.0,0.00010958,2]
[333546609,1722241851101,-720.8,0.00010958,2]
[333546610,1722241851111,-500.0,0.00010958,2]
[333546611,1722241851122,-500.0,0.00010958,2]
[333546612,1722241851135,-720.8,0.00010958,2]
[333546613,1722241851144,-500.0,0.00010958,2]
[333546614,1722241851156,-500.0,0.00010958,2]
[333546615,1722241851166,-524.39,0.00010958,2]
[333546616,1722241851176,-720.8,0.00010958,2]
[333546617,1722241851186,-351.84999998,0.00010958,2]
[333546618,1722241851196,-500.0,0.00010958,2]
[333546619,1722241851207,-720.8,0.00010958,2]
[333546620,1722241851217,-524.39,0.00010958,2]
[333546621,1722241851227,-500.0,0.00010958,2]
[333546622,1722241851237,-720.8,0.00010958,2]
[333546623,1722241851247,-500.0,0.00010958,2]
[333546624,1722241851256,-720.8,0.00010958,2]
[333546625,1722241851266,-524.39,0.00010958,2]
[333546626,1722241851276,-524.39,0.00010958,2]
[333546627,1722241851286,-720.8,0.00010958,2]
[333546628,1722241851295,-524.39,0.00010958,2]
[333546629,1722241851305,-524.39,0.00010958,2]
[333546630,1722241851315,-524.39,0.00010958,2]
[333546631,1722241851326,-524.39,0.00010958,2]
[333546632,1722241851337,-524.39,0.00010958,2]
[333546633,1722241851348,-208.62,0.00010958,2]
[333546634,1722241851359,-524.39,0.00010958,2]
[333546635,1722241851370,-502.23686065,0.00010958,2]
[333546636,1722241851385,-524.39,0.00010958,2]
[333546637,1722241851396,-720.8,0.00010958,2]
[333546638,1722241851407,-720.8,0.00010958,2]
[333546639,1722241851419,-524.39,0.00010958,2]
[333546640,1722241851431,-720.8,0.00010958,2]
[333546641,1722241851443,-524.39,0.00010958,2]
[333546642,1722241851455,-387.00000002,0.00010958,2]
[333546643,1722241851465,-524.39,0.00010958,2]
[333546644,1722241851476,-524.39,0.00010958,2]
[333546645,1722241851487,-720.8,0.00010958,2]
[333546646,1722241851498,-524.39,0.00010958,2]
[333546647,1722241851509,-720.8,0.00010958,2]
[333546648,1722241851520,-524.39,0.00010958,2]
[333546649,1722241851531,-500.0,0.00010958,2]
[333546650,1722241851540,-524.39,0.00010958,2]
[333546651,1722241851550,-500.0,0.00010958,2]
[333546652,1722241851560,-500.0,0.00010958,2]
[333546653,1722241851570,-524.39,0.00010958,2]
[333546654,1722241851580,-500.0,0.00010958,2]
[333546655,1722241851590,-500.0,0.00010958,2]
[333546656,1722241851599,-524.47,0.00010958,2]
[333546657,1722241851609,-500.0,0.00010958,2]
[333546658,1722241851621,-268.33,0.00010958,2]
[333546659,1722241851635,-558.8,0.00010958,2]
[333546660,1722241851645,-720.8,0.00010958,2]
[333546661,1722241851655,-720.8,0.00010958,2]
[333546662,1722241851665,-720.8,0.00010958,2]
[333546663,1722241851674,-720.8,0.00010958,2]
[333546664,1722241851684,-720.84,0.00010958,2]
[333546665,1722241851693,-500.0,0.00010958,2]
[333546666,1722241851703,-500.0,0.00010958,2]
[333546667,1722241851712,-500.0,0.00010958,2]
[333546668,1722241851722,-500.0,0.00010958,2]
[333546669,1722241851731,-948.64,0.00010958,2]
[333546670,1722241851740,-948.64,0.00010958,2]
[333546671,1722241851750,-948.64,0.00010958,2]
[333546672,1722241851759,-948.64,0.00010958,2]
[333546673,1722241851768,-948.64,0.00010958,2]
[333546674,1722241851777,-948.64,0.00010958,2]
[333546675,1722241851786,-948.64,0.00010958,2]
[333546676,1722241851795,-948.64,0.00010958,2]
[333546677,1722241851870,-955.76,0.00010958,2]
[333546678,1722241851886,-96.04199952,0.00010958,2]
[333546679,1722241852619,-852.59800048,0.00010958,2]
[333546680,1722241852629,-205.58832013,0.00010958,2]
[333546681,1722241852646,-369.15130269,0.00010958,2]
[333546682,1722241852658,-381.02037718,0.00010958,2]
[333546683,1722241852667,-955.76,0.00010958,2]
[333546684,1722241852677,-955.76,0.00010958,2]
[333546685,1722241852686,-633.19520832,0.00010958,2]
[333546686,1722241852704,-456.478872,0.0001095,2]
[333546687,1722241852713,-322.56479168,0.00010958,2]
[333546688,1722241852722,-500.0,0.00010958,2]
[333546689,1722241852731,-294.5398478,0.00010958,2]
[333546690,1722241852743,-384.50318454,0.00010958,2]
[333546834,1722243031925,-385.66,8.219e-05,2]
[333546835,1722243031934,-265.647482,9.473e-05,2]
[333546836,1722243031944,-250.0,9.501e-05,2]
[333546837,1722243031953,-250.0,9.521e-05,2]
[333546838,1722243031963,-20046.74852607,9.538e-05,2]
[333546841,1722243031979,-1174.98131028,9.538e-05,2]
[333546842,1722243032093,-1200.0,9.538e-05,2]
[333546843,1722243032157,-57.03016365,9.538e-05,2]
[333546844,1722243032166,-406.93370495,9.538e-05,2]
[333546874,1722243032731,-1593.06629505,9.538e-05,2]
[333546875,1722243032741,-2774.99,9.543e-05,2]
[333546876,1722243032751,-796.69,9.543e-05,2]
[333546877,1722243032760,-150.0,9.808e-05,2]
[333546878,1722243032770,-3314.85374837,9.812e-05,2]
[333546909,1722243037904,-1120.66502401,9.812e-05,2]
[333546910,1722243037977,-1733.58122762,9.812e-05,2]
[333546911,1722243037987,-3331.61787238,9.812e-05,2]
[333546912,1722243037998,-12257.21532762,9.812e-05,2]
[333546913,1722243038007,-1000.0,9.828e-05,2]
[333546914,1722243038016,-499.99,9.828e-05,2]
[333546915,1722243038026,-1480.61,9.855e-05,2]
[333546916,1722243038035,-150.0,9.862e-05,2]
[333546917,1722243038044,-1250.0,0.0001,2]
[333546918,1722243038054,-150.0,0.0001001,2]
[333546919,1722243038063,-311.37786872,0.00010041,2]
[333546920,1722243038093,-108.28213128,0.00010041,2]
[333546921,1722243038102,-1251.83,0.00010041,2]
[333546922,1722243038111,-150.0,0.00010044,2]
[333546923,1722243038124,-600.0,0.00010068,2]
[333546924,1722243038134,-700.0,0.00010068,2]
[333546925,1722243038144,-500.0,0.00010068,2]
[333546926,1722243038153,-228.74,0.0001008,2]
[333546927,1722243038162,-150.0,0.00010084,2]
[333546928,1722243038172,-150.0,0.00010121,2]
[333546929,1722243038181,-150.0,0.00010145,2]
[333546930,1722243038190,-150.0,0.00010178,2]
[333546931,1722243038199,-150.0,0.00010194,2]
[333546932,1722243038208,-150.0,0.00010215,2]
[333546933,1722243038217,-150.0,0.00010226,2]
[333546934,1722243038226,-150.0,0.00010236,2]
[333546935,1722243038235,-150.0,0.00010236,2]
[333546936,1722243038245,-150.0,0.00010259,2]
[333546937,1722243038254,-150.0,0.00010316,2]
[333546938,1722243038263,-150.0,0.00010323,2]
[333546939,1722243038272,-150.0,0.00010338,2]
[333546940,1722243038282,-150.0,0.00010374,2]
[333546941,1722243038291,-7762.77513982,0.0001041,2]
[333546942,1722243038300,-150.0,0.00010433,2]
[333546943,1722243038310,-150.0,0.00010435,2]
[333546944,1722243038319,-385.66,0.00010451,2]
[333546945,1722243038328,-150.0,0.00010478,2]
[333546946,1722243038338,-200.760387,0.00010497,2]
[333546947,1722243038348,-11745.311893,0.00010497,2]
[333546948,1722243038357,-150.0,0.00010529,2]
[333546949,1722243038369,-150.0,0.00010552,2]
[333546950,1722243038378,-1242.0,0.000106,5]
[333546951,1722243038391,-11745.311893,0.00010629,2]
[333546952,1722243038400,-150.0,0.00010644,2]
[333546953,1722243038409,-150.0,0.00010673,2]
[333546954,1722243038419,-150.0,0.00010703,2]
[333546955,1722243038428,-1094.1123467,0.00010739,2]
[333546956,1722243038437,-1035.22278137,0.00010739,2]
[333546957,1722243038448,-150.0,0.00010755,2]
[333546958,1722243038457,-11745.311893,0.0001076,2]
[333546959,1722243038467,-150.0,0.00010807,2]
[333546960,1722243038476,-2325.2692,0.00010851,2]
[333546961,1722243038486,-189.01688898,0.00010858,2]
[333546962,1722243038496,-526.13029948,0.00010858,2]
[333546963,1722243038505,-4986.8755,0.00010858,2]
[333546964,1722243038515,-1000.0,0.00010858,2]
[333546965,1722243038525,-1767.7101,0.00010858,2]
[333546966,1722243038534,-526.13029946,0.00010879,2]
[333546968,1722243038543,-600.0,0.0001089,2]
[333546970,1722243038553,-700.0,0.0001089,2]
[333546972,1722243038562,-11745.311893,0.00010891,2]
[333546974,1722243038571,-526.13029946,0.000109,2]
[333546976,1722243038581,-150.0,0.00010904,2]
[333546978,1722243038590,-150.0,0.00010914,2]
[333546980,1722243038599,-150.0,0.00010916,2]
[333546982,1722243038608,-150.0,0.00010934,2]
[333546984,1722243038618,-150.0,0.00010944,2]
[333546986,1722243038627,-150.0,0.00010946,2]
[333546988,1722243038636,-150.0,0.00010947,2]
[333546990,1722243038645,-155.37,0.00010948,2]
[333546992,1722243038654,-7394.0675147,0.00010951,2]
[333546993,1722243038663,-41402.5341691,0.00010951,2]
[333546995,1722243038673,-5773.0284212,0.00010951,2]
[333546997,1722243038682,-62170.2157679,0.00010951,2]
[333546999,1722243038691,-861.11134096,0.00010955,2]
[333547001,1722243038700,-362.0,0.00010956,2]
[333547003,1722243038709,-1925.0,0.00010956,2]
[333547005,1722243038719,-1581.0,0.00010956,2]
[333547007,1722243038728,-1255.0,0.00010956,2]
[333547009,1722243038738,-811.0,0.00010956,2]
[333547011,1722243038748,-184.371,0.00010956,2]
[333547013,1722243038757,-450.389,0.00010956,2]
[333547015,1722243038766,-513.555,0.00010956,2]
[333547017,1722243038775,-657.767,0.00010956,2]
[333547019,1722243038785,-550.0,0.00010956,2]
[333547021,1722243038794,-2380.0,0.00010956,2]
[333547023,1722243038804,-150.0,0.00010956,2]
[333547025,1722243038814,-3281.0,0.00010956,2]
[333547027,1722243038823,-674.699,0.00010956,2]
[333547029,1722243038833,-1370.0,0.00010956,2]
[333547032,1722243038844,-38384.0,0.00010956,2]
[333547034,1722243038853,-1670.0,0.00010956,2]
[333547036,1722243038863,-153.0,0.00010956,2]
[333547038,1722243038874,-527.033,0.00010956,2]
[333547040,1722243038884,-1595.358,0.00010956,2]
[333547042,1722243038893,-296.644,0.00010956,2]
[333547044,1722243038904,-150.0,0.00010956,2]
[333547046,1722243038913,-152.423,0.00010956,2]
[333547047,1722243038922,-280.23,0.00010956,2]
[333547049,1722243038931,-150.327,0.00010956,2]
[333547051,1722243038941,-150.0,0.00010957,2]
[333547053,1722243038950,-276.71696766,0.00010958,2]
[333547055,1722243038959,-500.0,0.00010958,2]
[333547057,1722243038968,-955.76,0.00010958,2]
[333547059,1722243038977,-500.0,0.00010958,2]
[333547061,1722243038986,-955.76,0.00010958,2]
[333547063,1722243038995,-500.0,0.00010958,2]
[333547065,1722243039004,-955.76,0.00010958,2]
[333547067,1722243039013,-500.0,0.00010958,2]
[333547069,1722243039022,-500.0,0.00010958,2]
[333547071,1722243039032,-955.76,0.00010958,2]
[333547073,1722243039041,-500.0,0.00010958,2]
[333547075,1722243039049,-955.76,0.00010958,2]
[333547077,1722243039059,-500.0,0.00010958,2]
[333547079,1722243039068,-955.76,0.00010958,2]
[333547081,1722243039076,-500.0,0.00010958,2]
[333547083,1722243039085,-500.0,0.00010958,2]
[333547085,1722243039094,-955.76,0.00010958,2]
[333547086,1722243039103,-397.42,0.00010958,2]
[333547087,1722243039112,-500.0,0.00010958,2]
[333547089,1722243039123,-955.76,0.00010958,2]
[333547091,1722243039134,-500.0,0.00010958,2]
[333547093,1722243039143,-955.76,0.00010958,2]
[333547095,1722243039153,-500.0,0.00010958,2]
[333547097,1722243039163,-955.76,0.00010958,2]
[333547099,1722243039172,-500.0,0.00010958,2]
[333547101,1722243039181,-948.64,0.00010958,2]
[333547103,1722243039191,-948.64,0.00010958,2]
[333547105,1722243039200,-500.0,0.00010958,2]
[333547107,1722243039209,-955.76,0.00010958,2]
[333547109,1722243039218,-258.84,0.00010958,2]
[333547111,1722243039228,-948.64,0.00010958,2]
[333547113,1722243039237,-955.76,0.00010958,2]
[333547115,1722243039246,-948.64,0.00010958,2]
[333547117,1722243039255,-955.76,0.00010958,2]
[333547119,1722243039264,-948.64,0.00010958,2]
[333547121,1722243039273,-955.76,0.00010958,2]
[333547123,1722243039282,-948.64,0.00010958,2]
[333547125,1722243039291,-955.76,0.00010958,2]
[333547127,1722243039300,-948.64,0.00010958,2]
[333547129,1722243039310,-955.76,0.00010958,2]
[333547131,1722243039319,-948.64,0.00010958,2]
[333547133,1722243039327,-955.76,0.00010958,2]
[333547134,1722243039336,-955.96,0.00010958,2]
[333547135,1722243039346,-500.0,0.00010958,2]
[333547136,1722243039354,-500.0,0.00010958,2]
[333547137,1722243039363,-500.0,0.00010958,2]
[333547138,1722243039373,-500.0,0.00010958,2]
[333547139,1722243039382,-948.64,0.00010958,2]
[333547140,1722243039391,-948.64,0.00010958,2]
[333547141,1722243039401,-500.0,0.00010958,2]
[333547142,1722243039410,-948.64,0.00010958,2]
[333547144,1722243039419,-500.0,0.00010958,2]
[333547146,1722243039428,-948.64,0.00010958,2]
[333547148,1722243039437,-446.16,0.00010958,2]
[333547150,1722243039449,-500.0,0.00010958,2]
[333547152,1722243039458,-948.64,0.00010958,2]
[333547154,1722243039467,-500.0,0.00010958,2]
[333547156,1722243039477,-500.0,0.00010958,2]
[333547158,1722243039487,-948.64,0.00010958,2]
[333547160,1722243039496,-500.0,0.00010958,2]
[333547162,1722243039506,-576.20211277,0.00010958,2]
[333547193,1722243039515,-948.65,0.00010958,2]
[333547196,1722243039780,-500.0,0.00010958,2]
[333547198,1722243039791,-500.0,0.00010958,2]
[333547200,1722243039801,-500.0,0.00010958,2]
[333547202,1722243039810,-500.0,0.00010958,2]
[333547204,1722243039820,-500.0,0.00010958,2]
[333547206,1722243039830,-500.0,0.00010958,2]
[333547208,1722243039840,-500.0,0.00010958,2]
[333547209,1722243039849,-500.0,0.00010958,2]
[333547212,1722243039859,-500.0,0.00010958,2]
[333547216,1722243039869,-500.0,0.00010958,2]
[333547218,1722243039878,-500.0,0.00010958,2]
[333547219,1722243039887,-440.65,0.00010958,2]
[333547221,1722243039896,-500.0,0.00010958,2]
[333547223,1722243039906,-1552.82,0.00010958,2]
[333547226,1722243039915,-500.0,0.00010958,2]
[333547228,1722243039924,-1552.82,0.00010958,2]
[333547230,1722243039933,-1705.9,0.00010958,2]
[333547232,1722243039943,-500.0,0.00010958,2]
[333547234,1722243039952,-1552.82,0.00010958,2]
[333547237,1722243039961,-1705.9,0.00010958,2]
[333547239,1722243039970,-500.0,0.00010958,2]
[333547241,1722243039979,-1705.9,0.00010958,2]
[333547243,1722243039988,-1552.82,0.00010958,2]
[333547245,1722243039998,-1705.9,0.00010958,2]
[333547247,1722243040007,-500.0,0.00010958,2]
[333547249,1722243040017,-500.0,0.00010958,2]
[333547251,1722243040026,-156.84547381,0.00010958,2]
[333547253,1722243040035,-500.0,0.00010958,2]
[333547255,1722243040044,-1552.82,0.00010958,2]
[333547257,1722243040053,-634.46,0.00010958,2]
[333547259,1722243040062,-500.0,0.00010958,2]
[333547261,1722243040071,-1705.9,0.00010958,2]
[333547263,1722243040080,-1552.82,0.00010958,2]
[333547265,1722243040089,-500.0,0.00010958,2]
[333547267,1722243040098,-1705.9,0.00010958,2]
[333547269,1722243040107,-1552.82,0.00010958,2]
[333547271,1722243040115,-500.0,0.00010958,2]
[333547273,1722243040125,-500.0,0.00010958,2]
[333547275,1722243040134,-1705.9,0.00010958,2]
[333547277,1722243040143,-500.0,0.00010958,2]
[333547279,1722243040153,-500.0,0.00010958,2]
[333547281,1722243040162,-500.0,0.00010958,2]
[333547282,1722243040171,-1705.9,0.00010958,2]
[333547284,1722243040181,-500.0,0.00010958,2]
[333547286,1722243040190,-500.0,0.00010958,2]
[333547288,1722243040199,-1705.9,0.00010958,2]
[333547290,1722243040208,-500.0,0.00010958,2]
[333547292,1722243040217,-205.13,0.00010958,2]
[333547294,1722243040227,-500.0,0.00010958,2]
[333547296,1722243040236,-500.0,0.00010958,2]
[333547298,1722243040245,-500.0,0.00010958,2]
[333547300,1722243040254,-1705.9,0.00010958,2]
[333547302,1722243040264,-175.35,0.00010958,2]
[333547304,1722243040274,-500.0,0.00010958,2]
[333547306,1722243040283,-500.0,0.00010958,2]
[333547308,1722243040293,-1705.9,0.00010958,2]
[333547310,1722243040303,-500.0,0.00010958,2]
[333547313,1722243040316,-500.0,0.00010958,2]
[333547315,1722243040325,-1705.9,0.00010958,2]
[333547317,1722243040334,-500.0,0.00010958,2]
[333547318,1722243040343,-500.0,0.00010958,2]
[333547320,1722243040352,-1705.9,0.00010958,2]
[333547322,1722243040361,-500.0,0.00010958,2]
[333547324,1722243040371,-500.0,0.00010958,2]
[333547327,1722243040381,-1705.9,0.00010958,2]
[333547329,1722243040390,-500.0,0.00010958,2]
[333547331,1722243040400,-500.0,0.00010958,2]
[333547333,1722243040409,-1705.9,0.00010958,2]
[333547335,1722243040419,-1552.82,0.00010958,2]
[333547337,1722243040429,-500.0,0.00010958,2]
[333547339,1722243040439,-318.1137841,0.00010958,2]
[333547341,1722243040452,-1705.9,0.00010958,2]
[333547343,1722243040461,-189.61,0.00010958,2]
[333547345,1722243040471,-1552.82,0.00010958,2]
[333547347,1722243040481,-500.0,0.00010958,2]
[333547349,1722243040491,-1705.9,0.00010958,2]
[333547351,1722243040500,-1552.82,0.00010958,2]
[333547353,1722243040509,-500.0,0.00010958,2]
[333547355,1722243040518,-1552.82,0.00010958,2]
[333547357,1722243040531,-603.35,0.00010958,2]
[333547359,1722243040540,-1552.82,0.00010958,2]
[333547361,1722243040549,-1552.82,0.00010958,2]
[333547363,1722243040559,-1552.82,0.00010958,2]
[333547365,1722243040568,-1552.82,0.00010958,2]
[333547367,1722243040577,-1552.82,0.00010958,2]
[333547369,1722243040587,-339.89,0.00010958,2]
[333547371,1722243040596,-1705.9,0.00010958,2]
[333547373,1722243040605,-1705.9,0.00010958,2]
[333547375,1722243040616,-1705.9,0.00010958,2]
[333547376,1722243040626,-1705.9,0.00010958,2]
[333547378,1722243040635,-1705.9,0.00010958,2]
[333547380,1722243040645,-1705.9,0.00010958,2]
[333547382,1722243040654,-1552.82,0.00010958,2]
[333547384,1722243040664,-1705.99,0.00010958,2]
[333547386,1722243040673,-1552.82,0.00010958,2]
[333547388,1722243040683,-1552.82,0.00010958,2]
[333547390,1722243040692,-1552.82,0.00010958,2]
[333547392,1722243040702,-500.0,0.00010958,2]
[333547394,1722243040712,-1552.82,0.00010958,2]
[333547396,1722243040721,-500.0,0.00010958,2]
[333547398,1722243040731,-500.0,0.00010958,2]
[333547401,1722243040740,-1552.82,0.00010958,2]
[333547403,1722243040749,-500.0,0.00010958,2]
[333547405,1722243040759,-500.0,0.00010958,2]
[333547407,1722243040769,-1552.82,0.00010958,2]
[333547409,1722243040779,-1552.908072,0.00010958,2]
[333547411,1722243040788,-500.0,0.00010958,2]
[333547413,1722243040798,-500.0,0.00010958,2]
[333547415,1722243040807,-500.0,0.00010958,2]
[333547417,1722243040816,-500.0,0.00010958,2]
[333547419,1722243040825,-500.0,0.00010958,2]
[333547420,1722243040834,-500.0,0.00010958,2]
[333547422,1722243040843,-500.0,0.00010958,2]
[333547424,1722243040852,-500.0,0.00010958,2]